Cogmind - Beta 16 @@@ ROGUE MODE // 2025.11.25 @ 15:34:17 Player: Swagumen Result: Destroyed by EK-TSE(R) with Subdweller Laser Performance ------------- Evolutions (0) 0 Regions Visited (3) 600 Robots Destroyed (48) 240 Value Destroyed (864) 864 Prototype IDs (4) 80 Alien Tech Used (0) 0 Bonus (0) 0 TOTAL SCORE: 1784 Bonus ------- None Cogmind --------- Core Integrity 0/250 Matter 300/300 Energy 125/125 System Corruption 0% Temperature Cool (6) Movement Rolling (140) Ox4 Location -10/Subcaves Parts ------- > --- POWER (1) -------- Light Ion Engine > --- PROPULSION (2) --- Wheel > --- UTILITY (2) ------ High-capacity Storage Unit Utility Shielding > --- WEAPON (2) ------- Shotgun > --- INVENTORY (20) --- Light Ion Engine Light Ion Engine Flight Unit Flight Unit Flight Unit Small Storage Unit Machine Analyzer Visual Processing Unit Targeting Computer Targeting Computer Utility Shielding Assault Rifle Assault Rifle Shotgun Grenade Launcher Peak State ------------ > --- POWER ------------ Light Ion Engine > --- PROPULSION ------- Light Treads Light Treads > --- UTILITY ---------- High-capacity Storage Unit Transport Network Coupler > --- WEAPON ----------- Shotgun Shotgun > --- INVENTORY -------- Light Ion Engine Light Ion Engine Wheel Flight Unit Flight Unit Flight Unit Small Storage Unit Visual Processing Unit Targeting Computer Targeting Computer Utility Shielding Utility Shielding Assault Rifle Assault Rifle Shotgun Shotgun Grenade Launcher [Rating: 11] Favorites ----------- Power Light Ion Engine Engine Light Ion Engine Propulsion Light Treads Treads Light Treads Wheel Wheel Utility High-capacity Storage Unit Device Seismic Detector Storage High-capacity Storage Unit Processor Transport Network Coupler Protection Utility Shielding Weapon Shotgun Energy Gun Small Laser Ballistic Gun Shotgun Build | -11 -10 -10 -10 ------- Run | Yrd Mat Min Sub Slots Evolved . | . . . . Power . | . . . . Propulsion . | . . . . Utility . | . . . . Weapon . | . . . . Parts Attached 22 | 8 7 3 4 Power 4 | 1 1 1 1 Engine 4 | 1 1 1 1 Core . | . . . . Reactor . | . . . . Propulsion 5 | 2 . 2 1 Treads 4 | 2 . 2 . Leg . | . . . . Wheel 1 | . . . 1 Hover . | . . . . Flight . | . . . . Utility 6 | 3 2 . 1 Device 2 | 2 . . . Storage 2 | 1 1 . . Processor 1 | . 1 . . Hackware . | . . . . Protection 1 | . . . 1 Artifact . | . . . . Weapon 7 | 2 4 . 1 Energy Gun 1 | 1 . . . Energy Cannon . | . . . . Ballistic Gun 6 | 1 4 . 1 Ballistic Cannon . | . . . . Launcher . | . . . . Special Weapon . | . . . . Impact Weapon . | . . . . Slashing Weapon . | . . . . Piercing Weapon . | . . . . Special Melee Weapon . | . . . . Unidentified Prototypes . | . . . . Parts Lost 9 | . 2 3 4 Power 2 | . 1 1 . Propulsion 4 | . . 2 2 Utility 1 | . 1 . . Weapon 2 | . . . 2 Highest Loss Streak 1 | . 1 1 1 To Critical Strikes . | . . . . Average Backups 13 | 1 11 16 15 Power . | . . 1 2 Propulsion 3 | . 3 4 3 Utility 5 | . 4 6 6 Weapon 4 | . 3 5 4 Tool/Special . | . . . . Unused Backups 13 | . 2 . 11 Power 1 | . . . 1 Propulsion 3 | . . . 3 Utility 5 | . . . 5 Weapon 4 | . 2 . 2 Tool/Special . | . . . . Average Slot Usage (%) 98 | . 99 97 91 Engine 13 | . 14 13 14 Treads 25 | . 28 25 14 Device 2 | . 4 . . Storage 14 | . 14 14 14 Processor 11 | . 9 14 7 Energy Gun 1 | . 2 . . Ballistic Gun 26 | . 25 28 27 Peak Build Rating 11 | 9 10 11 11 Average Rating 9 | 6 9 10 9 On Entrance 7 | . 7 10 11 Avg Prop Armor Cover (%) . | . . . . Naked Turns . | . . . . Heaviest Build 51 | 11 51 51 50 Greatest Support 40 | 40 40 40 40 Greatest Overweight (x) 4 | 2 1 2 4 Average Overweight (x) 1 | . . 1 2 Largest Inventory Capacity 20 | 8 20 20 20 Average Capacity 17 | 7 15 20 20 Most Carried 17 | 3 16 17 17 Average Carried 13 | 1 11 16 15 Final Capacity 20 | 8 20 20 20 Final Carried 17 | 3 16 17 15 Class Distribution -------------------- 100% | Mutant Dominant Class ---------------- Mutant | -10/Materials Mutant | -10/Mines Mutant | -10/Subcaves Resources | -11 -10 -10 -10 ----------- Run | Yrd Mat Min Sub Matter Collected 1095 | 203 505 257 130 Remotely . | . . . . Salvage Created 1206 | 93 739 276 98 Parts 101 | 9 59 30 3 Haulers Intercepted 2 | . 2 . . Recyclers Shooed . | . . . . Parts Field Recycled . | . . . . Retrieved Matter . | . . . . Parts Self-Destructed . | . . . . Prevented . | . . . . Parts Restored . | . . . . Kills | -11 -10 -10 -10 ------- Run | Yrd Mat Min Sub Combat Hostiles Destroyed 31 | . 20 8 3 Guns 31 | . 20 8 3 Classes Destroyed 10 | 2 6 1 1 Worker 4 | . 1 3 . Builder 1 | . . 1 . Tunneler 3 | 2 . 1 . Hauler 2 | . 2 . . Recycler 2 | 1 . 1 . Operator 2 | . 2 . . Watcher 3 | . 3 . . Swarmer 15 | . 9 6 . Grunt 13 | . 11 2 . Subdweller 3 | . . . 3 Best Kill Streak 4 | 2 3 4 1 Combat Bots Only 3 | . 3 3 1 Max Kills in Single Turn 2 | 1 2 2 1 Gunslinging 1 | . 1 . . Exploded . | . . . . Melee . | . . . . Uniques/NPCs Destroyed . | . . . . Combat | -11 -10 -10 -10 -------- Run | Yrd Mat Min Sub Hostile Shots Fired 167 | . 99 41 27 Missed 50 | . 35 11 4 Hits 117 | . 64 30 23 Projectile 117 | . 64 30 23 Critical Strikes 1 | . . 1 . Damage Taken 1421 | . 629 302 490 Core 268 | . 72 61 135 Absorbed by Shields . | . . . . Core Remaining (%) 100 | 100 . . . Volleys Fired 125 | 7 73 31 14 Largest 2 | 2 2 2 2 Hottest 60 | 60 60 46 46 Shots Fired 247 | 14 146 62 25 Gun 247 | 14 146 62 25 Cannon . | . . . . Launcher . | . . . . Special . | . . . . Kinetic 223 | 7 129 62 25 Thermal 24 | 7 17 . . Explosive . | . . . . Electromagnetic . | . . . . Robot Hit Streak 18 | 5 18 6 9 Robot Miss Streak 6 | 2 4 6 2 Penetration Max . | . . . . Secondary Targets 4 | . 3 1 . Max Gunslinging Chain 1 | . 1 1 . Shots Hit Robots 170 | 8 100 42 20 Core Hits 78 | 4 46 19 9 Critical Kills . | . . . . Critical Parts Destroyed 1 | . 1 . . Critical Strikes 2 | . 1 . 1 Destroy 2 | . 1 . 1 Melee Attacks . | . . . . Impact . | . . . . Slashing . | . . . . Piercing . | . . . . Sneak Attacks . | . . . . Combat Hostiles . | . . . . Follow-up Attacks . | . . . . Damage Inflicted 2389 | 87 1359 612 331 Guns 2337 | 87 1318 601 331 Cannons . | . . . . Explosions . | . . . . Melee . | . . . . Ramming 52 | . 41 11 . Kinetic 2117 | 12 1173 601 331 Thermal 220 | 75 145 . . Explosive . | . . . . Electromagnetic . | . . . . Impact . | . . . . Slashing . | . . . . Piercing . | . . . . Highest Corruption . | . . . . Average Corruption . | . . . . Corruption Purged . | . . . . Corruption Blocked . | . . . . Overload Shots . | . . . . Overflow Damage . | . . . . Projectiles . | . . . . Explosions . | . . . . Melee . | . . . . Knockbacks 1 | . 1 . . Impact 1 | . 1 . . Kinetic . | . . . . Secondary . | . . . . Self-Inflicted Damage . | . . . . Shots . | . . . . Rammed 12 | . 10 2 . Targets Rammed 14 | . 11 3 . Kicked . | . . . . Crushed 2 | . 1 1 . Highest Temperature 64 | 20 64 7 . Average Temperature 16 | 14 20 3 . Received Heat Transfer 351 | . 204 105 42 Siege Activations . | . . . . Martial Activations . | . . . . Shielding Activations . | . . . . Robots Disrupted . | . . . . Combat Hostiles . | . . . . Robots Corrupted . | . . . . Combat Hostiles . | . . . . Parts Fried . | . . . . Impact Corruptions . | . . . . Robots Melted . | . . . . Combat Hostiles . | . . . . Parts Melted . | . . . . Heat Transferred 500 | 175 325 . . Parts Sabotaged . | . . . . Parts Stolen . | . . . . Parts Stripped . | . . . . Power Chain Reactions . | . . . . Alert | -11 -10 -10 -10 ------- Run | Yrd Mat Min Sub Maximum Alert Level . | . . . . Low Security (%) 100 | 100 100 100 . Level 1 . | . . . . Level 2 . | . . . . Level 3 . | . . . . Level 4 . | . . . . Level 5 . | . . . . High Security . | . . . . Max Security . | . . . . Peak Influence 145 | 10 145 65 . Initial . | . . . . Average 30 | 1 49 9 . Influence Increases 841 | 15 591 235 . Destroy 0b10 Robot/C 560 | . 400 160 . Destroy 0b10 Robot/NC 85 | 15 40 30 . Destroy Leader 120 | . 90 30 . Successful Hack 31 | . 31 . . Partial Spotted 15 | . 15 . . Lose Combat Pursuer 30 | . 15 15 . Influence Decreases 841 | 15 591 235 . Time Decay 699 | 15 469 215 . Lost Part 40 | . 20 20 . Purge Threat 102 | . 102 . . Squads Dispatched 4 | . 4 . . Investigation 2 | . 2 . . Extermination . | . . . . Reinforcement 2 | . 2 . . Assault . | . . . . Garrison . | . . . . Intercept . | . . . . Searches Triggered . | . . . . Construction Impeded . | . . . . Haulers Reinforced . | . . . . Active Scanning Responses . | . . . . Cargo Convoy Interrupts . | . . . . Stealth | -11 -10 -10 -10 --------- Run | Yrd Mat Min Sub Distress Signals 3 | . 3 . . Communications Jammed . | . . . . Distress Signals . | . . . . Times Spotted 48 | . 32 9 7 Peak Tracking Total 4 | . 4 3 3 Tactical Retreats 3 | . 1 1 1 Traps | -11 -10 -10 -10 ------- Run | Yrd Mat Min Sub Traps Triggered 2 | . 2 . . Indirectly . | . . . . Trap Hack Attempts . | . . . . Triggered . | . . . . Disarmed . | . . . . Reprogrammed . | . . . . Reused . | . . . . Traps Extracted . | . . . . Installed . | . . . . Triggered . | . . . . Machines | -11 -10 -10 -10 ---------- Run | Yrd Mat Min Sub Machines Disabled . | . . . . Max in Single Turn . | . . . . Machines Repaired . | . . . . Machines Dismantled . | . . . . Machines Sabotaged . | . . . . Overloaded Fab Kills . | . . . . Hacking | -11 -10 -10 -10 --------- Run | Yrd Mat Min Sub Machines Accessed 8 | . 7 . 1 Terminals 6 | . 6 . . Fabricators . | . . . . Repair Stations . | . . . . Recycling Units 1 | . 1 . . Scanalyzers . | . . . . Garrison Access . | . . . . Total Hacks 26 | . 23 . 3 Successful 14 | . 11 . 3 Failed 12 | . 12 . . Catastrophic . | . . . . Database Lockouts . | . . . . Manual 7 | . 5 . 2 Terminals 22 | . 22 . . Fabricators . | . . . . Repair Stations . | . . . . Recycling Units 1 | . 1 . . Scanalyzers . | . . . . Garrison Access . | . . . . Terminal Hacks 13 | . 10 . 3 Record 4 | . 1 . 3 Robot Analysis 2 | . 2 . . Prototype ID Bank 2 | . 2 . . Branch Access Points 2 | . 2 . . Alert Level 1 | . 1 . . Unreport Threat 1 | . 1 . . Hauler Manifests 1 | . 1 . . Fabricator Hacks . | . . . . Repair Station Hacks . | . . . . Recycling Unit Hacks 1 | . 1 . . Report Inventory 1 | . 1 . . Scanalyzer . | . . . . Garrison Access Hacks . | . . . . Unauthorized Hacks . | . . . . Terminals . | . . . . Fabricators . | . . . . Repair Stations . | . . . . Recycling Units . | . . . . Scanalyzers . | . . . . Garrison Access . | . . . . Data Cores Recovered . | . . . . Used . | . . . . Hacking Detections 6 | . 6 . . Full Trace Events . | . . . . Feedback Events . | . . . . Feedback Blocked . | . . . . Robot Schematics Acquired . | . . . . Robots Built . | . . . . Authchips . | . . . . Time . | . . . . Total Robot Build Rating . | . . . . Part Schematics Acquired . | . . . . Parts Built . | . . . . Authchips . | . . . . Time . | . . . . Total Part Build Rating . | . . . . Part Studies Acquired . | . . . . Parts Repaired . | . . . . Time . | . . . . Parts Recycled . | . . . . Recycled Matter . | . . . . Retrieved Matter . | . . . . Retrieved Components . | . . . . Parts Scanalyzed . | . . . . Part Schematics Acquired . | . . . . Parts Damaged . | . . . . Bothacking | -11 -10 -10 -10 ------------ Run | Yrd Mat Min Sub Used RIF Installer . | . . . . Robots Hacked . | . . . . Non-combat . | . . . . Combat . | . . . . Robot Hacks Applied . | . . . . Relay Couplers Released . | . . . . Fabnet Peak Effective % . | . . . . Robots Rewired . | . . . . Allies Hacked . | . . . . Hacks Repelled . | . . . . Allies | -11 -10 -10 -10 -------- Run | Yrd Mat Min Sub Total Allies . | . . . . Largest Group . | . . . . Highest-Rated Group . | . . . . Highest-Rated Ally . | . . . . Total Orders . | . . . . Ally Attacks . | . . . . Total Damage . | . . . . Kills . | . . . . Allies Corrupted . | . . . . Allies Melted . | . . . . Intel | -11 -10 -10 -10 ------- Run | Yrd Mat Min Sub Active Infowar (turns) 3925 | 53 1951 1721 200 Terrain 36 | 36 . . . Seismic 659 | 17 642 . . T.N.C. 3230 | . 1309 1721 200 Robot Analysis Total 2 | . 2 . . Derelict Logs Recovered 1 | . . 1 . Drone Launches . | . . . . Drone Recoveries . | . . . . Exploration | -11 -10 -10 -10 ------------- Run | Yrd Mat Min Sub Turns Passed 4215 | 130 1982 1721 382 Spaces Moved 1689 | 64 795 645 185 Core 10 | 10 . . . Treads 1558 | 54 795 645 64 Legs . | . . . . Wheels 121 | . . . 121 Hover . | . . . . Flight . | . . . . Fastest Speed 50 | 50 160 240 140 Average Speed 218 | 151 211 247 176 Slowest Speed 320 | 160 240 320 320 Overloaded Moves . | . . . . Propulsion Burnouts . | . . . . Robots Hopped . | . . . . Potential Cave-ins . | . . . . Cave-ins Triggered . | . . . . Exploration Rate (%) 53 | 5 96 100 11 Regions Visited 3 Branch Regions 2 Pre-discovered Areas 1 | . . . 1 Known Exits Taken 1 | . 1 . . Unknown Exits Taken 2 | 1 . 1 . Scrap Searched 1 | . . 1 . Spaces Dug . | . . . . Terrain Destroyed . | . . . . Melee . | . . . . Projectile . | . . . . AOE . | . . . . Terrain Rammed . | . . . . Walls Destroyed . | . . . . Machines Disabled . | . . . . Actions | -11 -10 -10 -10 --------- Run | Yrd Mat Min Sub Total 1946 | 81 946 704 215 Wait 68 | . 36 21 11 Move 1686 | 63 794 644 185 Hop . | . . . . Pick Up 26 | 3 20 2 1 Fast Attach 9 | 7 . 2 . Attach 5 | . 2 1 2 Detach . | . . . . Swap 8 | 1 5 . 2 Drop 5 | . 5 . . Fire 125 | 7 73 31 14 Melee . | . . . . Ram . | . . . . Kick . | . . . . Crush 14 | . 11 3 . Escape Stasis . | . . . . Rewire . | . . . . Trap . | . . . . Miscellaneous . | . . . . Route ------- -11/Scrapyard -10/Materials (discovered 4 exits: [*Mat x3] / *Min) -10/Mines (discovered 3 exits: [*Mat x2] / *Sub) -10/Subcaves History --------- Turn | Location | Event 12 | -11/Scrapyard | Discovered new exit (range 15) 131 | -11/Scrapyard | Entered Materials 194 | -10/Materials | Discovered new exit (range 15) 306 | -10/Materials | Build established: Mutant 610 | -10/Materials | Discovered new exit (range 14) 1389 | -10/Materials | Discovered new exit (range 15) 1693 | -10/Materials | Identified exit to Mines 1732 | -10/Materials | Discovered new exit (range 7) 2113 | -10/Materials | Entered Mines 2303 | -10/Mines | A weapon hastily lodged in a ceiling crevice suddenly fell to the ground 2543 | -10/Mines | Discovered new exit (range 9) 2754 | -10/Mines | Core integrity fell below 50% 2903 | -10/Mines | Discovered new exit (range 9) 3157 | -10/Mines | Discovered new exit (range 13) 3834 | -10/Mines | Entered Subcaves 3835 | -10/Subcaves | Approached by a straggling Scientist 4011 | -10/Subcaves | Core integrity fell below 20% 4120 | -10/Subcaves | Visited Clippyterm 4124 | -10/Subcaves | Learned location of Deep Caves (-6) 4204 | -10/Subcaves | A Subdweller sparked back to life 4204 | -10/Subcaves | A Subdweller sparked back to life 4216 | -10/Subcaves | Destroyed by EK-TSE(R) with Subdweller Laser Last Messages --------------- attempt to resurrect an ancient AI. I give up. There must be something fundamentally wrong with the algorithm, because no matter how much data I collect to feed it, half the time it still manages to suggest unhelpful sample queries and responses. --DD-NU8 >>Record! "Some Assembly Required" It looks like you want to find the nearest Z-Facility, would you like help? World map updated: -6/Deep Caves. >>Record! "LRC-V1" It looks like you're REDACTED, I can suggest REDACTED and REDACTED. Also definitely avoid REDACTED. 04151_ Acquired 28 matter. 04204_ EK-TSE(R) creaks and sparks as it begins to move. 04204_ 7A-6AN(R) creaks and sparks as it begins to move. 04215_ Shotgun destroyed. Map ----- +----------------------------------------------------+ | ?????????????????????????????????????????## """ | | ???????????????????????????????????????? """ | | ???????????????????????????????????????? # "## | | ?????????????????????????????????????????????#???# | | ????????????????????????????????????????????????## | | ????????????????????????????????????????????????#" | | ??????????????????????????????????????????????#" | | ??????????????????????????????????????????????#### | | ?????????????????????????????????????????????????? | | ?????????????????????????????????????????????????? | | ?????????????????????????????????????????????????? | | ?????????????????????????????????????????????????? | | ?????????????????????????????????????????????????? | | ?????????????????????????????????????????????????? | | ?????????????????????????????????????????????????? | | ?????????????????????????????????????????????????? | | ?????????????????????????????????????????????????? | | ?????????????????????????????????????????????????? | | ?????????????????????????????????????????????????? | | ?????????????????????????????????????????????????? | | ?????????????????????????????????????????????????? | | ?????????????????????????????????????????????????? | | ?????????????????????????????????????????????????? | | ????????????????????##???????????????????????????? | | ????????????????????# ####?????????????????????? | | ????????????????????# @ #####?????????????????? | | ????????????????????## ##?#######????????? | | ????????????????????# ### # # ########## | | ???????????????????# ## | | ???????????????????# RR | | ???????????????????### ## " ## | | ?????????????????????## ## R# ##### | | ??????????????????????## ### & ##???? | | ???????????????????????#########?##### & ##????? | | ?????????????????????????????????????## " #?????? | | ??????????????????????????????????????######?????? | | ?????????????????????????????????????????????????? | | ?????????????????????????????????????????????????? | | ?????????????????????????????????????????????????? | | ?????????????????????????????????????????????????? | | ?????????????????????????????????????????????????? | | ?????????????????????????????????????????????????? | | ?????????????????????????????????????????????????? | | ?????????????????????????????????????????????????? | | ?????????????????????????????????????????????????? | | ?????????????????????????????????????????????????? | | ?????????????????????????????????????????????????? | | ?????????????????????????????????????????????????? | | ?????????????????????????????????????????????????? | | ?????????????????????????????????????????????????? | +----------------------------------------------------+ Best States ------------- Heat Dissipation 25 Energy Generation 10 Energy Capacity 250 Matter Stores 300 Matter Capacity 300 Sight Range 16 Terrain Scan Range 16 Terrain Scan Density 10 Utility Shielding 33 Evasion (%) 40 Recoil Reduction 2 Item Schematics ----------------- None Robot Schematics ------------------ None Fabricated ------------ Nothing Repaired ---------- Nothing Studied --------- None Alien Tech Used ----------------- None Achievements -------------- I Have A Map? Challenges ------------ None Game ------ Seed ColdCargoTendrils Manual? 0 Play Time 00:25:52 Cumulative 18.8 hours Start 2025.11.25 @ 15:10:36 End 2025.11.25 @ 15:34:17 Sessions 1 Manual Loads 0 Difficulty Rogue Special Mode None Game No. 24 Rogue 24 Adventurer 0 Explorer 0 Win Type - Total 0 Types 0/0/0/0/0/0/0/0/0/0 Lore% 9 Gallery% 20 Achievement% 13 Wizard Run 0 Options --------- Layout 1 ASCII 0 Keyboard 0 Movement Numpad Keybinds 0 Fullscreen 0 Font 28/SmallcapsGlow Map View 50x35 Zoom Use 0% Tactical HUD 1 Map Filters NONE Filters NONE Steam 1 RUN: e182121b-c248-401a-bbfd-1b07e3cba296